fUST/lending_fUST_20240920
["ID","MTS","AMOUNT","RATE_DAILY","PERIOD"]
[338641968,1726837845526,-500.0,0.00016438,2]
[338641969,1726837845535,-500.0,0.00016438,2]
[338641970,1726837845545,-500.0,0.00016438,2]
[338641971,1726837845554,-500.90346161,0.00016438,2]
[338641972,1726837845564,-151.0,0.00016438,2]
[338641973,1726837845573,-151.0,0.00016438,2]
[338641974,1726837845583,-543.93447136,0.00016473,2]
[338641975,1726837845592,-511.3005179,0.00016473,2]
[338641976,1726837845602,-457.60923811,0.00016473,2]
[338641977,1726837845611,-500.0,0.00016473,2]
[338641978,1726837845621,-500.0,0.00016473,2]
[338641979,1726837845632,-500.0,0.00016473,2]
[338641980,1726837845641,-500.0,0.00016473,2]
[338641981,1726837845651,-500.0,0.00016473,2]
[338641982,1726837845660,-500.0,0.00016473,2]
[338641983,1726837845669,-500.0,0.00016473,2]
[338641984,1726837845679,-160.09702408,0.00016473,2]
[338641985,1726837845688,-500.0,0.00016473,2]
[338641986,1726837845698,-500.0,0.00016473,2]
[338641987,1726837845707,-500.0,0.00016473,2]
[338641988,1726837845716,-500.0,0.00016473,2]
[338641989,1726837845725,-500.59578892,0.00016473,2]
[338641990,1726837845735,-500.0,0.00016473,2]
[338641991,1726837845745,-500.0,0.00016473,2]
[338641992,1726837845754,-500.91261053,0.00016473,2]
[338641993,1726837845764,-162.2,0.00016646,2]
[338641994,1726837845773,-420.0,0.00016665,2]
[338641995,1726837845782,-905.26378488,0.00016673,2]
[338641996,1726837845798,-94.73621512,0.00016673,2]
[338641997,1726837845807,-500.0,0.00016712,2]
[338641998,1726837845816,-500.0,0.00016712,2]
[338641999,1726837845826,-500.0,0.00016712,2]
[338642000,1726837845835,-500.0,0.00016712,2]
[338642001,1726837845845,-500.0,0.00016712,2]
[338642002,1726837845855,-529.08,0.00016712,2]
[338642003,1726837845864,-528.42,0.00016712,2]
[338642005,1726837845874,-504.88089513,0.00016712,2]
[338642006,1726837845884,-500.0,0.00016712,2]
[338642007,1726837845894,-629.67,0.00016712,2]
[338642008,1726837845903,-500.0,0.00016712,2]
[338642009,1726837845913,-500.0,0.00016712,2]
[338642010,1726837845923,-43.21288975,0.00016712,2]
[338642016,1726837846182,-500.0,0.00016438,2]
[338642017,1726837846192,-500.0,0.00016438,2]
[338642018,1726837846202,-456.78711025,0.00016712,2]
[338642020,1726837846212,-843.96,0.00016712,2]
[338642021,1726837846222,-500.0,0.00016712,2]
[338642022,1726837846231,-338.73392321,0.00016712,2]
[338642023,1726837846240,-214.06064899,0.00016712,2]
[338642025,1726837846430,-500.0,0.00016438,2]
[338642026,1726837846440,-500.35079891,0.00016438,2]
[338642027,1726837846450,-574.06935101,0.00016712,2]
[338642028,1726837846459,-500.0,0.00016712,2]
[338642029,1726837846469,-500.0,0.00016712,2]
[338642030,1726837846478,-500.0,0.00016712,2]
[338642031,1726837846487,-500.0,0.00016712,2]
[338642032,1726837846496,-500.0,0.00016712,2]
[338642033,1726837846506,-628.59,0.00016712,2]
[338642034,1726837846515,-910.99,0.00016712,2]
[338642035,1726837846524,-585.81716473,0.00016712,2]
[338642036,1726837846533,-501.905059,0.00016712,2]
[338642037,1726837846544,-1342.49,0.00016712,2]
[338642038,1726837846554,-500.0,0.00016712,2]
[338642039,1726837846563,-818.44,0.00016712,2]
[338642040,1726837846572,-500.0,0.00016712,2]
[338642041,1726837846581,-500.0,0.00016712,2]
[338642042,1726837846590,-493.4908852,0.00016712,2]
[338642043,1726837846599,-500.0,0.00016712,2]
[338642044,1726837846608,-500.0,0.00016712,2]
[338642045,1726837846618,-500.0,0.00016712,2]
[338642046,1726837846627,-974.57,0.00016712,2]
[338642047,1726837846636,-780.59,0.00016712,2]
[338642048,1726837846646,-500.0,0.00016712,2]
[338642049,1726837846656,-3183.73,0.00016712,2]
[338642050,1726837846665,-1168.84,0.00016712,2]
[338642051,1726837846674,-500.0,0.00016712,2]
[338642052,1726837846683,-500.0,0.00016712,2]
[338642053,1726837846693,-1221.96,0.00016712,2]
[338642054,1726837846702,-500.0,0.00016712,2]
[338642055,1726837846711,-500.0,0.00016712,2]
[338642056,1726837846721,-500.0,0.00016712,2]
[338642057,1726837846730,-500.74555666,0.00016712,2]
[338642058,1726837846739,-500.0,0.00016712,2]
[338642059,1726837846749,-500.0,0.00016712,2]
[338642060,1726837846758,-500.0,0.00016712,2]
[338642061,1726837846767,-806.19,0.00016712,2]
[338642062,1726837846776,-500.0,0.00016712,2]
[338642063,1726837846786,-500.0,0.00016712,2]
[338642064,1726837846795,-500.0,0.00016712,2]
[338642065,1726837846805,-500.0,0.00016712,2]
[338642066,1726837846814,-500.0,0.00016712,2]
[338642067,1726837846824,-526.85880867,0.00016712,2]
[338642068,1726837846833,-500.0,0.00016712,2]
[338642069,1726837846842,-500.0,0.00016712,2]
[338642070,1726837846851,-500.0,0.00016712,2]
[338642071,1726837846860,-500.0,0.00016712,2]
[338642072,1726837846870,-503.35558586,0.00016712,2]
[338642073,1726837846886,-500.0,0.00016712,2]
[338642074,1726837846897,-504.12947894,0.00016712,2]
[338642075,1726837846906,-678.08,0.00016712,2]
[338642076,1726837846916,-1570.0,0.00016712,2]
[338642077,1726837846926,-500.0,0.00016712,2]
[338642078,1726837846935,-1330.63,0.00016712,2]
[338642079,1726837846945,-500.0,0.00016712,2]
[338642080,1726837846955,-500.0,0.00016712,2]
[338642081,1726837846964,-502.07227781,0.00016712,2]
[338642082,1726837846973,-550.6,0.00016712,2]
[338642083,1726837846983,-500.0,0.00016712,2]
[338642084,1726837846992,-500.0,0.00016712,2]
[338642085,1726837847002,-1084.83,0.00016712,2]
[338642086,1726837847012,-512.26,0.00016712,2]
[338642087,1726837847021,-500.0,0.00016712,2]
[338642088,1726837847030,-663.8,0.00016712,2]
[338642089,1726837847154,-500.0,0.00016712,2]
[338642090,1726837847190,-553.58,0.00016712,2]
[338642091,1726837847200,-1238.4,0.00016712,2]
[338642092,1726837847209,-500.0,0.00016712,2]
[338642093,1726837847219,-500.0,0.00016712,2]
[338642094,1726837847229,-1034.2,0.00016712,2]
[338642095,1726837847239,-500.0,0.00016712,2]
[338642096,1726837847248,-608.17904169,0.00016712,2]
[338642097,1726837847258,-500.0,0.00016712,2]
[338642098,1726837847268,-500.0,0.00016712,2]
[338642099,1726837847277,-827.37,0.00016712,2]
[338642100,1726837847287,-500.0,0.00016712,2]
[338642101,1726837847297,-500.0,0.00016712,2]
[338642102,1726837847306,-500.0,0.00016712,2]
[338642103,1726837847316,-505.55,0.00016712,2]
[338642104,1726837847326,-500.0,0.00016712,2]
[338642105,1726837847336,-500.0,0.00016712,2]
[338642106,1726837847346,-500.0,0.00016712,2]
[338642107,1726837847355,-500.0,0.00016712,2]
[338642108,1726837847365,-607.93,0.00016712,2]
[338642109,1726837847375,-469.65671888,0.00016712,2]
[338642110,1726837847388,-294.25,0.00016712,2]
[338642111,1726837847398,-751.51,0.00016712,2]
[338642112,1726837847407,-623.56,0.00016712,2]
[338642113,1726837847418,-500.0,0.00016712,2]
[338642114,1726837847428,-500.0,0.00016712,2]
[338642115,1726837847437,-336.9234964,0.00016712,2]
[338642116,1726837847447,-500.0,0.00016712,2]
[338642117,1726837847456,-736.36,0.00016712,2]
[338642118,1726837847466,-502.93687059,0.00016712,2]
[338642119,1726837847475,-500.0,0.00016712,2]
[338642120,1726837847485,-928.97,0.00016712,2]
[338642121,1726837847495,-500.0,0.00016712,2]
[338642122,1726837847504,-500.0,0.00016712,2]
[338642123,1726837847515,-219.92,0.00016712,2]
[338642124,1726837847524,-500.0,0.00016712,2]
[338642125,1726837847534,-500.0,0.00016712,2]
[338642126,1726837847544,-500.0,0.00016712,2]
[338642127,1726837847555,-500.0,0.00016712,2]
[338642128,1726837847565,-500.0,0.00016712,2]
[338642129,1726837847574,-748.78,0.00016712,2]
[338642130,1726837847584,-1100.38,0.00016712,2]
[338642131,1726837847594,-500.0,0.00016712,2]
[338642132,1726837847603,-500.0,0.00016712,2]
[338642133,1726837847612,-500.0,0.00016712,2]
[338642134,1726837847622,-504.25567584,0.00016712,2]
[338642135,1726837847633,-630.65,0.00016712,2]
[338642136,1726837847643,-2189.18,0.00016712,2]
[338642137,1726837847653,-500.0,0.00016712,2]
[338642138,1726837847663,-500.0,0.00016712,2]
[338642139,1726837847672,-537.41,0.00016712,2]
[338642140,1726837847682,-500.0,0.00016712,2]
[338642141,1726837847692,-500.0,0.00016712,2]
[338642142,1726837847702,-631.44444202,0.00016712,2]
[338642143,1726837847712,-500.0,0.00016712,2]
[338642144,1726837847723,-500.0,0.00016712,2]
[338642145,1726837847736,-500.0,0.00016712,2]
[338642146,1726837847747,-588.76,0.00016712,2]
[338642147,1726837847757,-500.0,0.00016712,2]
[338642148,1726837847768,-500.0,0.00016712,2]
[338642149,1726837847778,-500.0,0.00016712,2]
[338642150,1726837847789,-776.15,0.00016712,2]
[338642151,1726837847800,-500.0,0.00016712,2]
[338642152,1726837847810,-500.0,0.00016712,2]
[338642153,1726837847820,-500.0,0.00016712,2]
[338642154,1726837847829,-500.0,0.00016712,2]
[338642155,1726837847839,-500.0,0.00016712,2]
[338642156,1726837847852,-500.0,0.00016712,2]
[338642157,1726837847862,-500.0,0.00016712,2]
[338642158,1726837847872,-500.0,0.00016712,2]
[338642159,1726837847882,-654.5,0.00016712,2]
[338642160,1726837847891,-500.0,0.00016712,2]
[338642161,1726837847901,-368.14,0.00016712,2]
[338642162,1726837847910,-500.0,0.00016712,2]
[338642163,1726837847921,-500.0,0.00016712,2]
[338642164,1726837847931,-502.89214749,0.00016712,2]
[338642165,1726837847941,-500.0,0.00016712,2]
[338642166,1726837847952,-500.0,0.00016712,2]
[338642167,1726837847962,-500.0,0.00016712,2]
[338642168,1726837847972,-500.0,0.00016712,2]
[338642169,1726837847983,-530.57,0.00016712,2]
[338642170,1726837847992,-500.0,0.00016712,2]
[338642171,1726837848003,-500.0,0.00016712,2]
[338642172,1726837848013,-500.0,0.00016712,2]
[338642173,1726837848023,-500.0,0.00016712,2]
[338642174,1726837848033,-500.0,0.00016712,2]
[338642175,1726837848044,-500.0,0.00016712,2]
[338642176,1726837848055,-500.0,0.00016712,2]
[338642177,1726837848068,-500.0,0.00016712,2]
[338642178,1726837848078,-316.83972755,0.00016712,2]
[338642179,1726837848087,-500.0,0.00016712,2]
[338642180,1726837848097,-500.0,0.00016712,2]
[338642181,1726837848107,-500.0,0.00016712,2]
[338642182,1726837848117,-500.0,0.00016712,2]
[338642183,1726837848128,-187.73600779,0.00016712,2]
[338642184,1726837848138,-722.68,0.00016712,2]
[338642185,1726837848148,-605.88653132,0.00016712,2]
[338642186,1726837848159,-500.0,0.00016712,2]
[338642187,1726837848169,-567.81820052,0.00016712,2]
[338642188,1726837848179,-712.2,0.00016712,2]
[338642189,1726837848188,-500.0,0.00016712,2]
[338642190,1726837848200,-500.0,0.00016712,2]
[338642191,1726837848210,-500.0,0.00016712,2]
[338642192,1726837848220,-500.0,0.00016712,2]
[338642193,1726837848230,-500.0,0.00016712,2]
[338642194,1726837848239,-500.0,0.00016712,2]
[338642195,1726837848249,-500.0,0.00016712,2]
[338642196,1726837848260,-500.0,0.00016712,2]
[338642197,1726837848269,-500.0,0.00016712,2]
[338642198,1726837848279,-873.37,0.00016712,2]
[338642199,1726837848288,-500.0,0.00016712,2]
[338642200,1726837848297,-500.0,0.00016712,2]
[338642201,1726837848306,-500.0,0.00016712,2]
[338642202,1726837848316,-500.0,0.00016712,2]
[338642203,1726837848326,-444.74031493,0.00016712,2]
[338642204,1726837848335,-500.0,0.00016712,2]
[338642205,1726837848345,-500.0,0.00016712,2]
[338642206,1726837848355,-500.0,0.00016712,2]
[338642207,1726837848365,-500.0,0.00016712,2]
[338642208,1726837848375,-548.79,0.00016712,2]
[338642209,1726837848390,-1000.0,0.00016712,2]
[338642210,1726837848399,-500.0,0.00016712,2]
[338642211,1726837848409,-500.0,0.00016712,2]
[338642212,1726837848419,-216.19094649,0.00016712,2]
[338642213,1726837848429,-303.1470092,0.00016712,2]
[338642214,1726837848439,-737.2,0.00016712,2]
[338642215,1726837848449,-488.19772381,0.00016712,2]
[338642216,1726837848458,-500.0,0.00016712,2]
[338642217,1726837848470,-500.0,0.00016712,2]
[338642218,1726837848481,-742.93,0.00016712,2]
[338642219,1726837848491,-500.0,0.00016712,2]
[338642220,1726837848501,-509.45846712,0.00016712,2]
[338642221,1726837848511,-533.69,0.00016712,2]
[338642222,1726837848521,-874.25,0.00016712,2]
[338642223,1726837848531,-500.0,0.00016712,2]
[338642224,1726837848542,-500.0,0.00016712,2]
[338642225,1726837848552,-842.89,0.00016712,2]
[338642226,1726837848562,-500.0,0.00016712,2]
[338642227,1726837848572,-749.27,0.00016712,2]
[338642228,1726837848581,-709.72,0.00016712,2]
[338642229,1726837848591,-500.0,0.00016712,2]
[338642230,1726837848601,-242.77142445,0.00016712,2]
[338642231,1726837848612,-500.0,0.00016712,2]
[338642232,1726837848622,-500.0,0.00016712,2]
[338642233,1726837848633,-591.76,0.00016712,2]
[338642234,1726837848643,-500.0,0.00016712,2]
[338642235,1726837848653,-530.44,0.00016712,2]
[338642236,1726837848663,-500.0,0.00016712,2]
[338642237,1726837848672,-500.0,0.00016712,2]
[338642238,1726837848682,-500.0,0.00016712,2]
[338642239,1726837848692,-312.87315821,0.00016712,2]
[338642240,1726837848702,-500.0,0.00016712,2]
[338642241,1726837848712,-525.5310659,0.00016712,2]
[338642242,1726837848722,-500.0,0.00016712,2]
[338642243,1726837848732,-500.0,0.00016712,2]
[338642244,1726837848742,-500.0,0.00016712,2]
[338642245,1726837848752,-482.62,0.00016712,2]
[338642246,1726837848761,-500.0,0.00016712,2]
[338642247,1726837848771,-500.0,0.00016712,2]
[338642248,1726837848781,-500.0,0.00016712,2]
[338642249,1726837848791,-329.64644397,0.00016712,2]
[338642250,1726837848800,-525.6,0.00016712,2]
[338642251,1726837848809,-189.65393973,0.00016712,2]
[338642252,1726837848819,-500.0,0.00016712,2]
[338642253,1726837848829,-500.0,0.00016712,2]
[338642254,1726837848840,-500.0,0.00016712,2]
[338642255,1726837848850,-500.0,0.00016712,2]
[338642256,1726837848860,-833.76,0.00016712,2]
[338642257,1726837848870,-500.0,0.00016712,2]
[338642258,1726837848882,-734.79,0.00016712,2]
[338642259,1726837848893,-500.0,0.00016712,2]
[338642260,1726837848903,-500.0,0.00016712,2]
[338642261,1726837848913,-500.0,0.00016712,2]
[338642262,1726837848923,-1309.22,0.00016712,2]
[338642263,1726837848932,-500.0,0.00016712,2]
[338642264,1726837848943,-500.0,0.00016712,2]
[338642265,1726837848953,-500.0,0.00016712,2]
[338642266,1726837848963,-500.0,0.00016712,2]
[338642267,1726837848973,-500.0,0.00016712,2]
[338642268,1726837848983,-500.0,0.00016712,2]
[338642269,1726837848993,-500.0,0.00016712,2]
[338642270,1726837849002,-500.0,0.00016712,2]
[338642271,1726837849011,-500.0,0.00016712,2]
[338642272,1726837849021,-500.0,0.00016712,2]
[338642273,1726837849030,-500.0,0.00016712,2]
[338642274,1726837849040,-2545.48,0.00016712,2]
[338642275,1726837849050,-500.0,0.00016712,2]
[338642276,1726837849060,-500.0,0.00016712,2]
[338642277,1726837849069,-500.0,0.00016712,2]
[338642278,1726837849079,-500.0,0.00016712,2]
[338642279,1726837849090,-500.0,0.00016712,2]
[338642280,1726837849101,-500.0,0.00016712,2]
[338642281,1726837849110,-500.0,0.00016712,2]
[338642282,1726837849120,-500.0,0.00016712,2]
[338642283,1726837849132,-500.0,0.00016712,2]
[338642284,1726837849141,-606.95404728,0.00016712,2]
[338642285,1726837849151,-617.76,0.00016712,2]
[338642286,1726837849161,-500.0,0.00016712,2]
[338642287,1726837849170,-500.0,0.00016712,2]
[338642288,1726837849180,-500.0,0.00016712,2]
[338642289,1726837849189,-535.95,0.00016712,2]
[338642290,1726837849199,-673.92,0.00016712,2]
[338642291,1726837849208,-500.0,0.00016712,2]
[338642292,1726837849217,-876.08,0.00016712,2]
[338642293,1726837849228,-172.03184272,0.00016712,2]
[338642294,1726837849238,-500.0,0.00016712,2]
[338642295,1726837849248,-500.0,0.00016712,2]
[338642296,1726837849257,-500.0,0.00016712,2]
[338642297,1726837849267,-500.0,0.00016712,2]
[338642298,1726837849277,-151.0,0.00016712,2]
[338642299,1726837849287,-188.44015,0.00016712,2]
[338642300,1726837849296,-745.38,0.00016712,2]
[338642301,1726837849307,-500.0,0.00016712,2]
[338642302,1726837849317,-401.07,0.00016712,2]
[338642303,1726837849327,-500.0,0.00016712,2]
[338642304,1726837849336,-500.0,0.00016712,2]
[338642305,1726837849346,-500.0,0.00016712,2]
[338642306,1726837849355,-893.79,0.00016712,2]
[338642307,1726837849365,-500.0,0.00016712,2]
[338642308,1726837849374,-500.0,0.00016712,2]
[338642309,1726837849385,-500.0,0.00016712,2]
[338642310,1726837849395,-58795.04,0.00016712,2]
[338642311,1726837849404,-500.0,0.00016712,2]
[338642312,1726837849414,-500.0,0.00016712,2]
[338642313,1726837849423,-259.21,0.00016712,2]
[338642314,1726837849432,-500.0,0.00016712,2]
[338642315,1726837849442,-500.0,0.00016712,2]
[338642316,1726837849452,-500.0,0.00016712,2]
[338642317,1726837849462,-500.0,0.00016712,2]
[338642318,1726837849471,-1000.0,0.00016718,2]
[338642319,1726837849481,-1000.0,0.00016727,2]
[338642320,1726837849490,-1000.0,0.0001673,2]
[338642321,1726837849500,-162.2,0.00016746,2]
[338642322,1726837849511,-420.0,0.00016753,2]
[338642323,1726837849520,-1000.0,0.00016793,2]
[338642324,1726837849530,-162.2,0.00016846,2]
[338642325,1726837849540,-600.0,0.00016863,2]
[338642326,1726837849550,-167.32396325,0.00016877,2]
[338642327,1726837849559,-167.32396325,0.00016877,2]
[338642328,1726837849569,-1000.0,0.00016896,2]
[338642329,1726837849578,-1000.0,0.00016903,2]
[338642330,1726837849587,-500.0,0.00016945,2]
[338642331,1726837849597,-162.2,0.00016947,2]
[338642332,1726837849606,-1000.0,0.00016948,2]
[338642333,1726837849654,-500.0,0.00016986,2]
[338642334,1726837849663,-500.0,0.00016986,2]
[338642335,1726837849673,-170.97482847,0.00016986,2]
[338642336,1726837849682,-500.0,0.00016986,2]
[338642337,1726837849691,-529.08,0.00016986,2]
[338642338,1726837849700,-634.44183947,0.00016986,2]
[338642339,1726837849709,-629.67,0.00016986,2]
[338642340,1726837849718,-500.0,0.00016986,2]
[338642341,1726837849728,-500.0,0.00016986,2]
[338642342,1726837849738,-500.0,0.00016986,2]
[338642343,1726837849747,-843.96,0.00016986,2]
[338642344,1726837849755,-500.0,0.00016986,2]
[338642345,1726837849764,-788.13,0.00016986,2]
[338642346,1726837849773,-500.0,0.00016986,2]
[338642347,1726837849782,-530.35469643,0.00016986,2]
[338642348,1726837849792,-500.0,0.00016986,2]
[338642349,1726837849801,-500.0,0.00016986,2]
[338642350,1726837849811,-500.0,0.00016986,2]
[338642351,1726837849820,-628.59,0.00016986,2]
[338642352,1726837849829,-910.99,0.00016986,2]
[338642353,1726837849838,-1342.49,0.00016986,2]
[338642354,1726837849848,-500.0,0.00016986,2]
[338642355,1726837849857,-818.44,0.00016986,2]
[338642356,1726837849867,-95.83069851,0.00016986,2]
[338642365,1726838040899,868.64,0.00010959,2]
[338642437,1726838811670,1288.58,0.000191,120]
[338642504,1726839032609,-1004.2500002,0.00015334,2]
[338642506,1726839032619,-300.0,0.00015402,2]
[338642508,1726839032628,-300.0,0.00015402,2]
[338642510,1726839032637,-18147.25559991,0.00015403,2]
[338642512,1726839032649,-1004.25000015,0.00015403,2]
[338642571,1726839038537,-5748.49439994,0.00015403,2]
[338642572,1726839038547,-1000.0,0.00016,13]
[338642573,1726839038557,-500.0,0.00016045,7]
[338642574,1726839038566,-500.0,0.00016045,7]
[338642575,1726839038575,-500.0,0.00016045,7]
[338642576,1726839038586,-500.0,0.00016045,7]
[338642578,1726839038598,-500.0,0.00016045,7]
[338642580,1726839038608,-260.52,0.00016045,7]
[338642582,1726839038618,-500.0,0.0001615,2]
[338642583,1726839038628,-1245.55002372,0.00016325,2]
[338642585,1726839038637,-1000.0,0.00016328,2]
[338642587,1726839038646,-2411.63392059,0.00016338,2]
[338642589,1726839038656,-3000.0,0.000164,2]
[338642591,1726839038665,-3000.0,0.0001641,2]
[338642593,1726839038675,-5409.57640209,0.00016413,2]
[338642594,1726839038686,-5424.72525366,0.00016413,2]
[338642643,1726839040558,-81.14813685,0.00016413,2]
[338642645,1726839040568,-1803.19213403,0.00016414,2]
[338642647,1726839040577,-1835.29113017,0.00016414,2]
[338642649,1726839040586,-2580.36859895,0.00016414,2]
[338642657,1726839040675,-10041.97633925,0.00016414,2]
[338642658,1726839040685,-12847.0379112,0.00016414,2]
[338642659,1726839040694,-3606.38426806,0.00016415,2]
[338642660,1726839040704,-3670.58226034,0.00016415,2]
[338642661,1726839040713,-9015.96067015,0.00016418,2]
[338642662,1726839040722,-9176.45565085,0.00016418,2]
[338642663,1726839040731,-3000.0,0.0001642,2]
[338642664,1726839040741,-500.0,0.00016421,2]
[338642665,1726839040750,-410.71452452,0.00016421,2]
[338642666,1726839040759,-500.0,0.00016421,2]
[338642667,1726839040768,-500.0,0.00016421,2]
[338642668,1726839040778,-1878.74403335,0.00016421,2]
[338642669,1726839040787,-500.0,0.00016421,2]
[338642670,1726839040796,-184.869632,0.00016421,2]
[338642671,1726839040806,-295.52296976,0.00016421,2]
[338642672,1726839040815,-500.0,0.00016421,2]
[338642673,1726839040824,-1878.74403335,0.00016421,2]
[338642674,1726839040833,-312.7373569,0.00016421,2]
[338642675,1726839040846,-500.0,0.00016421,2]
[338642676,1726839040859,-1878.74403335,0.00016421,2]
[338642677,1726839040868,-500.0,0.00016421,2]
[338642678,1726839040877,-1878.74403335,0.00016421,2]
[338642679,1726839040886,-500.0,0.00016421,2]
[338642680,1726839040895,-1878.74403335,0.00016421,2]
[338642681,1726839040904,-500.0,0.00016421,2]
[338642682,1726839040914,-1878.74403335,0.00016421,2]
[338642683,1726839040924,-500.0,0.00016421,2]
[338642684,1726839040934,-1878.74403335,0.00016421,2]
[338642685,1726839040943,-500.0,0.00016421,2]
[338642686,1726839040952,-1878.74403335,0.00016421,2]
[338642687,1726839040961,-1878.74403335,0.00016421,2]
[338642688,1726839040970,-500.0,0.00016421,2]
[338642689,1726839040979,-500.0,0.00016421,2]
[338642690,1726839040988,-1878.74403335,0.00016421,2]
[338642691,1726839040998,-500.0,0.00016421,2]
[338642692,1726839041008,-1878.74403335,0.00016421,2]
[338642693,1726839041017,-500.0,0.00016421,2]
[338642694,1726839041026,-1878.74403335,0.00016421,2]
[338642695,1726839041035,-500.0,0.00016421,2]
[338642696,1726839041044,-1878.74403335,0.00016421,2]
[338642697,1726839041054,-500.0,0.00016421,2]
[338642698,1726839041063,-1878.74403335,0.00016421,2]
[338642699,1726839041072,-500.0,0.00016421,2]
[338642700,1726839041081,-500.0,0.00016421,2]
[338642701,1726839041091,-1878.74403335,0.00016421,2]
[338642702,1726839041102,-500.0,0.00016421,2]
[338642703,1726839041111,-1878.74403335,0.00016421,2]
[338642704,1726839041120,-500.0,0.00016421,2]
[338642705,1726839041130,-500.0,0.00016421,2]
[338642706,1726839041139,-1878.74403335,0.00016421,2]
[338642707,1726839041149,-500.0,0.00016421,2]
[338642708,1726839041158,-500.0,0.00016421,2]
[338642709,1726839041167,-1878.74403335,0.00016421,2]
[338642710,1726839041176,-500.0,0.00016421,2]
[338642711,1726839041186,-1878.74403335,0.00016421,2]
[338642712,1726839041196,-158.94795524,0.00016421,2]
[338642713,1726839041205,-1878.74403335,0.00016421,2]
[338642714,1726839041214,-500.0,0.00016421,2]
[338642715,1726839041223,-1878.74403335,0.00016421,2]
[338642716,1726839041232,-500.0,0.00016421,2]
[338642717,1726839041241,-1878.74403335,0.00016421,2]
[338642718,1726839041251,-500.0,0.00016421,2]
[338642719,1726839041260,-1878.74403335,0.00016421,2]
[338642720,1726839041270,-500.0,0.00016421,2]
[338642721,1726839041279,-1878.74403335,0.00016421,2]
[338642722,1726839041288,-500.0,0.00016421,2]
[338642723,1726839041298,-1878.74403335,0.00016421,2]
[338642724,1726839041307,-1878.74403335,0.00016421,2]
[338642725,1726839041316,-1878.74403335,0.00016421,2]
[338642726,1726839041326,-500.0,0.00016421,2]
[338642727,1726839041335,-1878.74403335,0.00016421,2]
[338642728,1726839041344,-500.0,0.00016421,2]
[338642729,1726839041356,-1878.74403335,0.00016421,2]
[338642730,1726839041366,-1878.74403335,0.00016421,2]
[338642731,1726839041375,-500.0,0.00016421,2]
[338642732,1726839041384,-1878.74403335,0.00016421,2]
[338642733,1726839041393,-1878.74403335,0.00016421,2]
[338642734,1726839041574,-1878.74403335,0.00016421,2]
[338642735,1726839041584,-1878.74403335,0.00016421,2]
[338642736,1726839041594,-1878.74403335,0.00016421,2]
[338642737,1726839041606,-1878.74403335,0.00016421,2]
[338642738,1726839041615,-1878.74403335,0.00016421,2]
[338642739,1726839041625,-1878.74403335,0.00016421,2]
[338642740,1726839041635,-1878.74403335,0.00016421,2]
[338642741,1726839041644,-1878.74403335,0.00016421,2]
[338642742,1726839041654,-1878.74403335,0.00016421,2]
[338642743,1726839041664,-1878.74403335,0.00016421,2]
[338642744,1726839041674,-1878.74403335,0.00016421,2]
[338642745,1726839041684,-1878.74403335,0.00016421,2]
[338642746,1726839041693,-1878.74403335,0.00016421,2]
[338642747,1726839041703,-1878.74403335,0.00016421,2]
[338642748,1726839041714,-1878.74403335,0.00016421,2]